Workbook

Sheet Introduction
A1: Introduction | I1: vAConsult
I2: =AppInputs!R2 -> V1.2
H3: =AppInputs!Q3 -> 2015-02-12
T6: Revisions
T7: GvA: 12/02/2015 -> V1.2
T8: AppInputs, cmb_LoadProfile: List was missing. Added

Sheet AppInputs
A1: Static inputs and annual result | R1: vAConsult
R2: V1.2
Q3: 2015-02-12
A5: Storage tank: | V5: Label classes | X5: STO_USE
B6: Nvol = | C6: 4 | D6: - | E6: …Number of volumes in the storage tank | L6: Solar collector: | V6: A+ | X6: STO_USE_H | Y6: Space heating only
D7: Bottom | E7: 2 | F7: 3 | G7: Top | M7: Asol;mod = | N7: 2.5 | O7: m2 | P7: …Aperture area collector module | V7: A | X7: STO_USE_W | Y7: Water heating only
B8: Vsto;tot = | C8: =SUM(D8:G8) -> 300 | D8: 75 | E8: 75 | F8: 75 | G8: 75 | H8: litres | I8: …Volume of each volume | M8: ηo = | N8: 0.8 | O8: - | P8: …Zero loss collector efficiency | V8: B | X8: STO_USE_ALL | Y8: Space and water heating
B9: ϑsto;vol,to = | C9: 10 | D9: oC | E9: …Start temperature | M9: a1 = | N9: 3.5 | O9: W/(m2.K) | P9: …First order collector heat loss | V9: C
B10: Labl class: | C10: C | D10: - | E10: …Storage label class | M10: a2 = | N10: 0 | O10: W/(m2.K2) | P10: …Second order collector heat loss | V10: D
B11: Hsto;ls = | C11: 1.869850636 | D11: W/k | E11: …Storage heat loss coefficient | M11: IAM = | N11: 0.94 | O11: - | P11: …Incidence angle modifier | V11: E
B12: STO_USE | C12: STO_USE_ALL | E12: ="…"&VLOOKUP(C12,X6:Y8,2,FALSE) -> …Space and water heating | M12: Фcol = | N12: 0.02 | O12: kg/s/m2 | P12: …Collector flowrate (test condition) | V12: F | X12: Space heating demand
V13: G | X13: Low
A14: Backup heater: | L14: Collector loop: | X14: Medium
B15: Psto;bkp = | C15: 15 | D15: kW | E15: …Power of backup heater (for each volume) | M15: SOL_LOC | N15: HS | O15: - | P15: …Location collector loop | X15: High
B16: Isto;bkp = | C16: 3 | D16: - | E16: …Volume number of heat input | M16: Nsol;mod | N16: 3 | O16: - | P16: …Number of collector modules applied
B17: ϑsto;bkp;max = | C17: 70 | D17: oC | E17: …Maximum temperature (thermostat) | M17: Pcol;pmp | N17: 30 | O17: W | P17: …Pump power | W17: Load profiles
B18: Hsto;bkp;exh | C18: 2000 | D18: W/K | E18: …Heat exchanger heat transfer rate | M18: Pcol;ctrl | N18: 2 | O18: W | P18: …Control power | W18: Test
M19: Hsol;loop | N19: 4 | O19: W/K | P19: …Heat loss coefficient collector loop | W19: M
A20: Domestic hot water: | W20: L
B21: Load profile: | C21: L | L21: Connection to the storage: | W21: XL
B22: ϑW;sto;dhw;in = | C22: 10 | D22: oC | E22: …Cold water temperature | M22: ϑsto;sol;max = | N22: 90 | O22: oC | P22: …Maximum temperature storage due to collector | W22: XXL
B23: ϑW;sto;out;min = | C23: 60 | D23: oC | E23: …Requested supply temperature | M23: Isto;sol;in = | N23: 1 | O23: - | P23: …Volume number for inlet storage
B24: Isto;dhw;in = | C24: 1 | D24: - | E24: …Volume number inlet storage | M24: Hsto;sol;exh = | N24: =40*num_Asol_Mod*num_Nsol_mod -> 300 | O24: W/K | P24: …Heat exchanger heat transfer rate
B25: Isto;dhw;out = | C25: 4 | D25: - | E25: …Volume number outlet storage
A27: Space heating:
B28: Heat demand: | C28: Low
B29: ϑS;dis;rtn = | C29: 30 | D29: oC | E29: …Space heating distribution return temperature
B30: Isto;shs;in = | C30: 3 | D30: - | E30: …Volume number inlet storage
B31: Hsto;shs;exh = | C31: 1000 | D31: W/K | E31: …Heat exchanger heat transfer rate
A33: Constants:
B34: ρ = | C34: 1 | D34: kg/l | E34: ...Water volumic mass
B35: Cp;w = | C35: 0.00116 | D35: kWh/(kg.K) | E35: ...Water specific heat
B39: Annual results
C40: kWh | D40: MJ
B41: Qsto;bkp = | C41: 6588.171704 | D41: =C41*3.6 -> 23717.41813 | E41: …Backup heater input into the storage
B42: Qsol = | C42: 8297.40375 | D42: =C42*3.6 -> 29870.6535 | E42: …Solar radiation on collector plane
B43: Qsto;sol = | C43: 3005.396115 | D43: 10819.42601 | E43: …Solar heat input into the storage
B44: Qsto;Dhw;req = | C44: 4254.075 | D44: 15314.67 | E44: …Requested heat for the service hot water
B45: Qsto;Dhw = | C45: 4254.075 | D45: 15314.67 | E45: …Hot water heat output from the storage
B46: Qsto;sh;req = | C46: 4762.06722 | D46: 17143.44199 | E46: …Requested heat for the service space heating
B47: Qsto;sh = | C47: 4748.330696 | D47: 17093.99051 | E47: …Space heating heat output from the storage
B48: Qsto;ls = | C48: 580.1221875 | D48: 2088.439875 | E48: …heat storage heat losses
B49: Qsto;bal = | C49: 2.147774614e-12 | D49: 7.731988611e-12 | E49: …Heat balance of the storage
B50: Wsol;aux = | C50: 91.62 | E50: …Auxiliary energy consumption

Sheet Climate
A1: Climate data | I1: vAConsult
I2: V1.1
H3: 2014-11-14
K4: Summary of monthly data calculated from hourly data
A5: Day | B5: Hour | C5: Tout | D5: Isol | J5: Nbr days | K5: 31 | L5: 28 | M5: 31 | N5: 30 | O5: 31 | P5: 30 | Q5: 31 | R5: 31 | S5: 30 | T5: 31 | U5: 30 | V5: 31 | W5: =SUM(K5:V5) -> 365
C6: oC | D6: W/m2 | J6: Start row: | K6: 7 | L6: =K6+K5*24 -> 751 | M6: 1423 | N6: 2167 | O6: 2887 | P6: 3631 | Q6: 4351 | R6: 5095 | S6: 5839 | T6: 6559 | U6: 7303 | V6: 8023 | W6: 8767
A7: 1 | B7: 1 | C7: 3.2 | D7: 0 | J7: Month no: | K7: 1 | L7: 2 | M7: 3 | N7: 4 | O7: 5 | P7: 6 | Q7: 7 | R7: 8 | S7: 9 | T7: 10 | U7: 11 | V7: 12
A8: 1 | B8: 2 | C8: 3.4 | D8: 0 | J8: Isol = | K8: =AVERAGE(INDIRECT("D"&K6&":D"&L6-1)) -> 39.83008513 | L8: =AVERAGE(INDIRECT("D"&L6&":D"&M6-1)) -> 65.37888558 | M8: 126.3109319 | N8: 167.0806327 | O8: 192.7483946 | P8: 209.5015046 | Q8: 187.1146953 | R8: 206.5056377 | S8: 139.3266975 | T8: 93.53655167 | U8: 51.12013889 | V8: 33.15400986 | W8: W/m2
A9: 1 | B9: 3 | C9: 3.5 | D9: 0 | J9: Tout = | K9: =AVERAGE(INDIRECT("C"&K6&":C"&L6-1)) -> 2.474865591 | L9: =AVERAGE(INDIRECT("C"&L6&":C"&M6-1)) -> 2.725744048 | M9: 5.582930108 | N9: 7.957083333 | O9: 11.94233871 | P9: 15.49097222 | Q9: 17.04731183 | R9: 16.38776882 | S9: 13.77555556 | T9: 11.16801075 | U9: 5.956111111 | V9: 3.424596774 | W9: oC
A10: 1 | B10: 4 | C10: 3.7 | D10: 0
A11: 1 | B11: 5 | C11: 3.2 | D11: 0
A12: 1 | B12: 6 | C12: 3.3 | D12: 0
A13: 1 | B13: 7 | C13: 2.8 | D13: 0
A14: 1 | B14: 8 | C14: 2.9 | D14: 0
A15: 1 | B15: 9 | C15: 2.4 | D15: 0
A16: 1 | B16: 10 | C16: 2.8 | D16: 16.13888889
A17: 1 | B17: 11 | C17: 3.6 | D17: 79.91666667
A18: 1 | B18: 12 | C18: 4.3 | D18: 119.3888889
A19: 1 | B19: 13 | C19: 4.7 | D19: 67.77777778
A20: 1 | B20: 14 | C20: 5.2 | D20: 82.30555556
A21: 1 | B21: 15 | C21: 5.4 | D21: 69.30555556
A22: 1 | B22: 16 | C22: 4.9 | D22: 41.72222222
A23: 1 | B23: 17 | C23: 3.5 | D23: 13.91666667
A24: 1 | B24: 18 | C24: 3.6 | D24: 0
A25: 1 | B25: 19 | C25: 3 | D25: 0
A26: 1 | B26: 20 | C26: 3.4 | D26: 0
A27: 1 | B27: 21 | C27: 2.9 | D27: 0
A28: 1 | B28: 22 | C28: 1.7 | D28: 0
A29: 1 | B29: 23 | C29: 1.3 | D29: 0
A30: 1 | B30: 24 | C30: 1.3 | D30: 0
A31: 2 | B31: 1 | C31: 0.6 | D31: 0
A32: 2 | B32: 2 | C32: 0.3 | D32: 0
A33: 2 | B33: 3 | C33: -0.3 | D33: 0
A34: 2 | B34: 4 | C34: -1 | D34: 0
A35: 2 | B35: 5 | C35: -0.4 | D35: 0
A36: 2 | B36: 6 | C36: 0.3 | D36: 0
A37: 2 | B37: 7 | C37: 0.7 | D37: 0
A38: 2 | B38: 8 | C38: 0.8 | D38: 0
A39: 2 | B39: 9 | C39: 1.3 | D39: 0
A40: 2 | B40: 10 | C40: 1.5 | D40: 6
A41: 2 | B41: 11 | C41: 1.9 | D41: 38.05555556
A42: 2 | B42: 12 | C42: 3.2 | D42: 203.5277778
A43: 2 | B43: 13 | C43: 4.7 | D43: 469.3333333
A44: 2 | B44: 14 | C44: 5 | D44: 505.3333333
A45: 2 | B45: 15 | C45: 3.5 | D45: 412.3611111
A46: 2 | B46: 16 | C46: 3.6 | D46: 268.9722222
A47: 2 | B47: 17 | C47: 2.6 | D47: 10.30555556
A48: 2 | B48: 18 | C48: 1.9 | D48: 0
A49: 2 | B49: 19 | C49: 1.4 | D49: 0
A50: 2 | B50: 20 | C50: 0.7 | D50: 0
A51: 2 | B51: 21 | C51: 0.6 | D51: 0
A52: 2 | B52: 22 | C52: 0.2 | D52: 0
A53: 2 | B53: 23 | C53: 0.2 | D53: 0
A54: 2 | B54: 24 | C54: 0.2 | D54: 0
A55: 3 | B55: 1 | C55: -0.2 | D55: 0
A56: 3 | B56: 2 | C56: 0.2 | D56: 0
A57: 3 | B57: 3 | C57: -0.6 | D57: 0
A58: 3 | B58: 4 | C58: -0.9 | D58: 0
A59: 3 | B59: 5 | C59: -0.7 | D59: 0
A60: 3 | B60: 6 | C60: -1.3 | D60: 0
A61: 3 | B61: 7 | C61: -1.5 | D61: 0
A62: 3 | B62: 8 | C62: -1.8 | D62: 0
A63: 3 | B63: 9 | C63: -2 | D63: 0
A64: 3 | B64: 10 | C64: -0.8 | D64: 124.8055556
A65: 3 | B65: 11 | C65: 0.9 | D65: 378.9444444
A66: 3 | B66: 12 | C66: 2 | D66: 490.8055556
A67: 3 | B67: 13 | C67: 3 | D67: 563.6944444
A68: 3 | B68: 14 | C68: 3.5 | D68: 638.5
A69: 3 | B69: 15 | C69: 3.3 | D69: 515.7777778
A70: 3 | B70: 16 | C70: 2.3 | D70: 331.6666667
A71: 3 | B71: 17 | C71: 1.5 | D71: 31
A72: 3 | B72: 18 | C72: -0.5 | D72: 0
A73: 3 | B73: 19 | C73: -0.7 | D73: 0
A74: 3 | B74: 20 | C74: -0.5 | D74: 0
A75: 3 | B75: 21 | C75: -0.6 | D75: 0
A76: 3 | B76: 22 | C76: -1.4 | D76: 0
A77: 3 | B77: 23 | C77: -2.2 | D77: 0
A78: 3 | B78: 24 | C78: -2.5 | D78: 0
A79: 4 | B79: 1 | C79: -2 | D79: 0
A80: 4 | B80: 2 | C80: 0 | D80: 0
A81: 4 | B81: 3 | C81: -0.8 | D81: 0
A82: 4 | B82: 4 | C82: -1.8 | D82: 0
A83: 4 | B83: 5 | C83: -2.8 | D83: 0
A84: 4 | B84: 6 | C84: -2.8 | D84: 0
A85: 4 | B85: 7 | C85: -3.6 | D85: 0
A86: 4 | B86: 8 | C86: -3.5 | D86: 0
A87: 4 | B87: 9 | C87: -3.1 | D87: 0
A88: 4 | B88: 10 | C88: -2.4 | D88: 144.2222222
A89: 4 | B89: 11 | C89: -1.1 | D89: 578.4444444
A90: 4 | B90: 12 | C90: -0.4 | D90: 864.1111111
A91: 4 | B91: 13 | C91: -0.3 | D91: 914.8888889
A92: 4 | B92: 14 | C92: 2.2 | D92: 774.3611111
A93: 4 | B93: 15 | C93: 2.3 | D93: 554.4166667
A94: 4 | B94: 16 | C94: 1.8 | D94: 369.9444444
A95: 4 | B95: 17 | C95: -0.3 | D95: 64.13888889
A96: 4 | B96: 18 | C96: -0.6 | D96: 0
A97: 4 | B97: 19 | C97: -1.2 | D97: 0
A98: 4 | B98: 20 | C98: -1.7 | D98: 0
A99: 4 | B99: 21 | C99: -1.7 | D99: 0
A100: 4 | B100: 22 | C100: -1.2 | D100: 0
A101: 4 | B101: 23 | C101: -0.7 | D101: 0
A102: 4 | B102: 24 | C102: 0.1 | D102: 0
A103: 5 | B103: 1 | C103: 1.1 | D103: 0
A104: 5 | B104: 2 | C104: 0.5 | D104: 0
A105: 5 | B105: 3 | C105: 0.5 | D105: 0
A106: 5 | B106: 4 | C106: 1 | D106: 0
A107: 5 | B107: 5 | C107: 1.3 | D107: 0
A108: 5 | B108: 6 | C108: 1.6 | D108: 0
A109: 5 | B109: 7 | C109: 1.7 | D109: 0
A110: 5 | B110: 8 | C110: 2.2 | D110: 0
A111: 5 | B111: 9 | C111: 2.3 | D111: 0
A112: 5 | B112: 10 | C112: 2.6 | D112: 6
A113: 5 | B113: 11 | C113: 3.1 | D113: 16.52777778
A114: 5 | B114: 12 | C114: 3.5 | D114: 86.88888889
A115: 5 | B115: 13 | C115: 4.1 | D115: 77.27777778
A116: 5 | B116: 14 | C116: 4.2 | D116: 74.66666667
A117: 5 | B117: 15 | C117: 4 | D117: 72
A118: 5 | B118: 16 | C118: 3.6 | D118: 40.97222222
A119: 5 | B119: 17 | C119: 3.6 | D119: 9.944444444
A120: 5 | B120: 18 | C120: 3.3 | D120: 0
A121: 5 | B121: 19 | C121: 2.9 | D121: 0
A122: 5 | B122: 20 | C122: 2.9 | D122: 0
A123: 5 | B123: 21 | C123: 2.9 | D123: 0
A124: 5 | B124: 22 | C124: 2.5 | D124: 0
A125: 5 | B125: 23 | C125: 2.5 | D125: 0
A126: 5 | B126: 24 | C126: 2.9 | D126: 0
A127: 6 | B127: 1 | C127: 3 | D127: 0
A128: 6 | B128: 2 | C128: 2.6 | D128: 0
A129: 6 | B129: 3 | C129: 3 | D129: 0
A130: 6 | B130: 4 | C130: 4.2 | D130: 0
A131: 6 | B131: 5 | C131: 4.1 | D131: 0
A132: 6 | B132: 6 | C132: 4.1 | D132: 0
A133: 6 | B133: 7 | C133: 4.3 | D133: 0
A134: 6 | B134: 8 | C134: 4.5 | D134: 0
A135: 6 | B135: 9 | C135: 4.8 | D135: 0
A136: 6 | B136: 10 | C136: 5.1 | D136: 6
A137: 6 | B137: 11 | C137: 5.3 | D137: 9.75
A138: 6 | B138: 12 | C138: 5.5 | D138: 15.97222222
A139: 6 | B139: 13 | C139: 5.3 | D139: 18.05555556
A140: 6 | B140: 14 | C140: 5.4 | D140: 25.13888889
A141: 6 | B141: 15 | C141: 5.3 | D141: 13.94444444
A142: 6 | B142: 16 | C142: 5.3 | D142: 17.27777778
A143: 6 | B143: 17 | C143: 5 | D143: 4.277777778
A144: 6 | B144: 18 | C144: 4.7 | D144: 0
A145: 6 | B145: 19 | C145: 5.1 | D145: 0
A146: 6 | B146: 20 | C146: 4.9 | D146: 0
A147: 6 | B147: 21 | C147: 4.2 | D147: 0
A148: 6 | B148: 22 | C148: 4.5 | D148: 0
A149: 6 | B149: 23 | C149: 4 | D149: 0
A150: 6 | B150: 24 | C150: 3.6 | D150: 0
A151: 7 | B151: 1 | C151: 4.1 | D151: 0
A152: 7 | B152: 2 | C152: 4.4 | D152: 0
A153: 7 | B153: 3 | C153: 4 | D153: 0
A154: 7 | B154: 4 | C154: 3.6 | D154: 0
A155: 7 | B155: 5 | C155: 3.9 | D155: 0
A156: 7 | B156: 6 | C156: 3.6 | D156: 0
A157: 7 | B157: 7 | C157: 4 | D157: 0
A158: 7 | B158: 8 | C158: 4.3 | D158: 0
A159: 7 | B159: 9 | C159: 4.6 | D159: 0
A160: 7 | B160: 10 | C160: 4.8 | D160: 1.861111111
A161: 7 | B161: 11 | C161: 5.6 | D161: 7.666666667
A162: 7 | B162: 12 | C162: 6.1 | D162: 15.97222222
A163: 7 | B163: 13 | C163: 6.6 | D163: 25.02777778
A164: 7 | B164: 14 | C164: 6.9 | D164: 25.13888889
A165: 7 | B165: 15 | C165: 7.1 | D165: 31.08333333
A166: 7 | B166: 16 | C166: 7.3 | D166: 12.36111111
A167: 7 | B167: 17 | C167: 7.2 | D167: 4.25
A168: 7 | B168: 18 | C168: 6.6 | D168: 0
A169: 7 | B169: 19 | C169: 6.5 | D169: 0
A170: 7 | B170: 20 | C170: 6.4 | D170: 0
A171: 7 | B171: 21 | C171: 6.2 | D171: 0
A172: 7 | B172: 22 | C172: 6.2 | D172: 0
A173: 7 | B173: 23 | C173: 6.5 | D173: 0
A174: 7 | B174: 24 | C174: 6.6 | D174: 0
A175: 8 | B175: 1 | C175: 7.1 | D175: 0
A176: 8 | B176: 2 | C176: 7.6 | D176: 0
A177: 8 | B177: 3 | C177: 7.6 | D177: 0
A178: 8 | B178: 4 | C178: 7.7 | D178: 0
A179: 8 | B179: 5 | C179: 8 | D179: 0
A180: 8 | B180: 6 | C180: 7.7 | D180: 0
A181: 8 | B181: 7 | C181: 7.9 | D181: 0
A182: 8 | B182: 8 | C182: 7.8 | D182: 0
A183: 8 | B183: 9 | C183: 7.9 | D183: 0
A184: 8 | B184: 10 | C184: 8 | D184: 0
A185: 8 | B185: 11 | C185: 8 | D185: 7.666666667
A186: 8 | B186: 12 | C186: 8.3 | D186: 7.527777778
A187: 8 | B187: 13 | C187: 8 | D187: 13.66666667
A188: 8 | B188: 14 | C188: 8 | D188: 22.72222222
A189: 8 | B189: 15 | C189: 8.2 | D189: 11.75
A190: 8 | B190: 16 | C190: 7.2 | D190: 14.69444444
A191: 8 | B191: 17 | C191: 6.5 | D191: 9.555555556
A192: 8 | B192: 18 | C192: 6 | D192: 0
A193: 8 | B193: 19 | C193: 5.8 | D193: 0
A194: 8 | B194: 20 | C194: 5.1 | D194: 0
A195: 8 | B195: 21 | C195: 4.7 | D195: 0
A196: 8 | B196: 22 | C196: 4.3 | D196: 0
A197: 8 | B197: 23 | C197: 3.9 | D197: 0
A198: 8 | B198: 24 | C198: 4.5 | D198: 0
A199: 9 | B199: 1 | C199: 4.9 | D199: 0
A200: 9 | B200: 2 | C200: 4.4 | D200: 0
... 8566 more rows

Sheet Outputs
A1: Climate data | P1: vAConsult
P2: V1.1
O3: 2014-11-14
A6: Display output for day: | D6: 30
A8: Day | B8: Hour | C8: Tsto;vol,1 | D8: Tsto;vol,2 | E8: Tsto;vol,3 | F8: Tsto;vol,4 | G8: Isol;s45 | H8: Qsto;sol;in | I8: Qsto;bkp;in | J8: Qsto;dhw;out;req | K8: Qsto;dhw;out | L8: Qsto;sh;out;req | M8: Qsto;sh;out | N8: Qsto;ls | O8: Qsto;bal | P8: itCnt
A9: 30 | B9: 1 | C9: 11.3415094 | D9: 14.31012438 | E9: 69.7313433 | F9: 69.7313433 | G9: 0 | H9: 0 | I9: 0.04674626589 | J9: 0 | K9: 0 | L9: 0 | M9: 0 | N9: 0.04000270641 | O9: 4.189357194e-16 | P9: 1
A10: 30 | B10: 2 | C10: 11.38803263 | D10: 14.34069684 | E10: 69.7313433 | F10: 69.7313433 | G10: 0 | H10: 0 | I10: 0.04674626589 | J10: 0 | K10: 0 | L10: 0 | M10: 0 | N10: 0.04003894046 | O10: 3.686287386e-16 | P10: 1
A11: 30 | B11: 3 | C11: 11.43430588 | D11: 14.37110503 | E11: 69.7313433 | F11: 69.7313433 | G11: 0 | H11: 0 | I11: 0.04674626589 | J11: 0 | K11: 0 | L11: 0 | M11: 0 | N11: 0.04007497982 | O11: 5.013350846e-16 | P11: 1
A12: 30 | B12: 4 | C12: 11.48033051 | D12: 14.40134984 | E12: 69.7313433 | F12: 69.7313433 | G12: 0 | H12: 0 | I12: 0.04674626589 | J12: 0 | K12: 0 | L12: 0 | M12: 0 | N12: 0.04011082553 | O12: 4.692427003e-16 | P12: 1
A13: 30 | B13: 5 | C13: 11.52610783 | D13: 14.43143214 | E13: 69.7313433 | F13: 69.7313433 | G13: 0 | H13: 0 | I13: 0.04674626589 | J13: 0 | K13: 0 | L13: 0 | M13: 0 | N13: 0.04014647865 | O13: 5.941427905e-16 | P13: 1
A14: 30 | B14: 6 | C14: 11.57163919 | D14: 14.4613528 | E14: 38.17766352 | F14: 69.7313433 | G14: 0 | H14: 0 | I14: 0.04674626589 | J14: 0 | K14: 0 | L14: 2.75999999 | M14: 2.75999999 | N14: 0.02535209037 | O14: 4.510281038e-16 | P14: 3
A15: 30 | B15: 7 | C15: 11.10103767 | D15: 13.54256848 | E15: 38.34915211 | F15: 69.7313433 | G15: 0 | H15: 0 | I15: 4.378822518 | J15: 1.715 | K15: 1.715 | L15: 2.744999886 | M15: 2.744999886 | N15: 0.02477969331 | O15: 5.412337245e-16 | P15: 3
A16: 30 | B16: 8 | C16: 10.32276388 | D16: 11.7454277 | E16: 38.52063798 | F16: 69.7313433 | G16: 0 | H16: 0 | I16: 6.464508097 | J16: 3.92 | K16: 3.92 | L16: 2.730000019 | M16: 2.730000019 | N16: 0.02364987575 | O16: 5.655198532e-16 | P16: 3
A17: 30 | B17: 9 | C17: 10.36178789 | D17: 11.7325985 | E17: 38.52063798 | F17: 69.7313433 | G17: 0 | H17: 0 | I17: 2.965941155 | J17: 0.21 | K17: 0.21 | L17: 2.730000019 | M17: 2.730000019 | N17: 0.023662187 | O17: 1.024787893e-15 | P17: 3
A18: 30 | B18: 10 | C18: 10.4063045 | D18: 11.74947139 | E18: 40.21010655 | F18: 69.7313433 | G18: 0.06104166667 | H18: 0 | I18: 2.864031944 | J18: 0.105 | K18: 0.105 | L18: 2.582222223 | M18: 2.582222223 | N18: 0.02448506922 | O18: 1.082467449e-15 | P18: 3
A19: 30 | B19: 11 | C19: 10.44152183 | D19: 11.73981574 | E19: 41.75984388 | F19: 69.7313433 | G19: 0.10625 | H19: 0 | I19: 2.818943173 | J19: 0.21 | K19: 0.21 | L19: 2.446666718 | M19: 2.446666718 | N19: 0.0252254408 | O19: 4.406197629e-16 | P19: 3
A20: 30 | B20: 12 | C20: 10.46626122 | D20: 11.70592397 | E20: 50.24529502 | F20: 69.7313433 | G20: 0.3789583333 | H20: 0 | I20: 2.7860916 | J20: 0.315 | K20: 0.315 | L20: 1.704444408 | M20: 1.704444408 | N20: 0.02920919923 | O20: -5.655198532e-16 | P20: 3
A21: 30 | B21: 13 | C21: 11.91094141 | D21: 11.91094141 | E21: 54.57693899 | F21: 69.7313433 | G21: 0.5210416667 | H21: 0.1359201723 | I21: 1.742032466 | J21: 0 | K21: 0 | L21: 1.325555563 | M21: 1.325555563 | N21: 0.0320203578 | O21: 3.747002708e-16 | P21: 3
A22: 30 | B22: 14 | C22: 11.9160011 | D22: 11.954405 | E22: 51.97922279 | F22: 69.7313433 | G22: 0.4358333333 | H22: 0 | I22: 1.466820253 | J22: 0.105 | K22: 0.105 | L22: 1.552777767 | M22: 1.552777767 | N22: 0.03082226781 | O22: 1.491862189e-16 | P22: 3
A23: 30 | B23: 15 | C23: 12.6413774 | D23: 12.6413774 | E23: 55.87897254 | F23: 69.7313433 | G23: 0.535625 | H23: 0.1193930002 | I23: 1.692745158 | J23: 0.105 | K23: 0.105 | L23: 1.211666703 | M23: 1.211666703 | N23: 0.03331889016 | O23: -4.30211422e-16 | P23: 3
A24: 30 | B24: 16 | C24: 12.6278329 | D24: 12.68091626 | E24: 49.19096523 | F24: 69.7313433 | G24: 0.31625 | H24: 0 | I24: 1.352259321 | J24: 0.105 | K24: 0.105 | L24: 1.796666622 | M24: 1.796666622 | N24: 0.03018782424 | O24: -7.632783294e-17 | P24: 3
A25: 30 | B25: 17 | C25: 12.66744455 | D25: 12.72024268 | E25: 43.66526024 | F25: 69.7313433 | G25: 0.135 | H25: 0 | I25: 1.833759158 | J25: 0 | K25: 0 | L25: 2.279999971 | M25: 2.279999971 | N25: 0.02762790932 | O25: 5.898059818e-17 | P25: 3
A26: 30 | B26: 18 | C26: 12.54602166 | D26: 12.75617457 | E26: 40.21645747 | F26: 69.7313433 | G26: 0.01625 | H26: 0 | I26: 2.615149984 | J26: 0.315 | K26: 0.315 | L26: 2.581666708 | M26: 2.581666708 | N26: 0.02596683378 | O26: 2.775557562e-16 | P26: 3
A27: 30 | B27: 19 | C27: 12.53490588 | D27: 12.7908732 | E27: 39.37807547 | F27: 69.7313433 | G27: 0 | H27: 0 | I27: 2.714696333 | J27: 0.105 | K27: 0.105 | L27: 2.654999971 | M27: 2.654999971 | N27: 0.02558388798 | O27: 6.904199434e-16 | P27: 3
A28: 30 | B28: 20 | C28: 12.2184115 | D28: 12.79359985 | E28: 38.52063798 | F28: 69.7313433 | G28: 0 | H28: 0 | I28: 3.3881386 | J28: 0.735 | K28: 0.735 | L28: 2.730000019 | M28: 2.730000019 | N28: 0.02503343562 | O28: 1.255939797e-15 | P28: 3
A29: 30 | B29: 21 | C29: 10.68495423 | D29: 12.42388609 | E29: 38.00617493 | F29: 69.7313433 | G29: 0 | H29: 0 | I29: 6.298563108 | J29: 3.71 | K29: 3.71 | L29: 2.775000095 | M29: 2.775000095 | N29: 0.0238971767 | O29: 2.428612866e-17 | P29: 3
A30: 30 | B30: 22 | C30: 10.73500522 | D30: 12.46459357 | E30: 36.97725157 | F30: 69.7313433 | G30: 0 | H30: 0 | I30: 2.806835914 | J30: 0 | K30: 0 | L30: 2.86500001 | M30: 2.86500001 | N30: 0.02345625048 | O30: 3.920475056e-16 | P30: 3
A31: 30 | B31: 23 | C31: 10.78478727 | D31: 12.50508232 | E31: 36.46278852 | F31: 69.7313433 | G31: 0 | H31: 0 | I31: 2.896352246 | J31: 0 | K31: 0 | L31: 2.910000086 | M31: 2.910000086 | N31: 0.02325688524 | O31: -2.15105711e-16 | P31: 3
A32: 30 | B32: 24 | C32: 10.83430185 | D32: 12.54535351 | E32: 69.7313433 | F32: 69.7313433 | G32: 0 | H32: 0 | I32: 2.941110531 | J32: 0 | K32: 0 | L32: 0 | M32: 0 | N32: 0.0389349039 | O32: 3.053113318e-16 | P32: 1
H33: =SUM(H9:H32) -> 0.2553131724 | I33: =SUM(I9:I32) -> 54.30727915 | J33: 11.655 | K33: 11.655 | L33: 42.38166678 | M33: 42.38166678 | N33: 0.7168441096 | O33: =SUM(O9:O32) -> 8.699204551e-15

Sheet Revisions
A2: Date | B2: Author | C2: Location
A3: 2014-12-05 | B3: GvA | C3: prEN15316_StaticInput | D3: Clim_StaticInput | E3: FirstCol = InpSht.Range("Climate_FirstRow").Column + 2. '+2'added
